Cogmind - Beta 9.6 @@@ ROGUE MODE // 2020.06.04 @ 00:38:29 Player: heavypress Result: Destroyed by as-65802 with Assembled Heavy Rifle Performance ------------- Evolutions (0) 0 Regions Visited (2) 400 Robots Destroyed (10) 50 Value Destroyed (130) 130 Prototype IDs (0) 0 Alien Tech Used (0) 0 Bonus (0) 0 TOTAL SCORE: 580 Bonus ------- None Cogmind --------- Core Integrity 0/250 Matter 159/300 Energy 91/100 System Corruption 0% Temperature Cool (3) Movement Flying (40) Location -10/Mines Parts ------- > --- POWER (1) -------- (None) > --- PROPULSION (2) --- Flight Unit > --- UTILITY (2) ------ (None) > --- WEAPON (2) ------- (None) > --- INVENTORY (4) ---- Light Assault Rifle Grenade Launcher Peak State ------------ > --- POWER ------------ Ion Engine > --- PROPULSION ------- Aluminum Leg Aluminum Leg > --- UTILITY ---------- Small Storage Unit > --- WEAPON ----------- Medium Laser Light Assault Rifle > --- INVENTORY -------- Ion Engine EM Pulse Gun [Rating: 6] Favorites ----------- Power Ion Engine Engine Ion Engine Propulsion Flight Unit Leg Aluminum Leg Flight Unit Flight Unit Utility Small Storage Unit Storage Small Storage Unit Weapon Light Assault Rifle Energy Gun Medium Laser Ballistic Gun Light Assault Rifle Launcher Grenade Launcher Special Weapon Mining Laser Build | -11 -10 -10 ------- Run | Scr Mat Min Slots Evolved . | . . . Power . | . . . Propulsion . | . . . Utility . | . . . Weapon . | . . . Parts Attached 18 | 6 4 8 Power 2 | 1 . 1 Engine 2 | 1 . 1 Core . | . . . Reactor . | . . . Propulsion 8 | 2 2 4 Treads . | . . . Leg 2 | 2 . . Wheel . | . . . Hover . | . . . Flight 6 | . 2 4 Utility 1 | 1 . . Device . | . . . Storage 1 | 1 . . Processor . | . . . Hackware . | . . . Protection . | . . . Artifact . | . . . Weapon 7 | 2 2 3 Energy Gun 2 | 1 1 . Energy Cannon . | . . . Ballistic Gun 1 | 1 . . Ballistic Cannon . | . . . Launcher 3 | . 1 2 Special Weapon 1 | . . 1 Impact Weapon . | . . . Slashing Weapon . | . . . Piercing Weapon . | . . . Special Melee Weapon . | . . . Unidentified Prototypes . | . . . Parts Lost 7 | . . 7 Power 1 | . . 1 Propulsion 5 | . . 5 Utility . | . . . Weapon 1 | . . 1 Highest Loss Streak 7 | . . 7 Average Slot Usage (%) 56 | . 67 39 Engine 12 | . 14 8 Leg 9 | . 15 . Flight 16 | . 12 21 Storage 6 | . 9 . Energy Gun 4 | . 6 . Ballistic Gun 4 | . 7 . Launcher 1 | . 1 1 Special Weapon 2 | . . 7 Naked Turns 6 | . . 6 Heaviest Build 12 | 12 12 9 Greatest Support 20 | 20 20 8 Greatest Overweight (x) 1 | . 1 1 Average Overweight (x) . | . . . Largest Inventory Capacity 6 | 6 6 4 Average Capacity 5 | 5 5 4 Most Carried 6 | 4 6 4 Average Carried 3 | 1 3 2 Final Capacity 6 | 6 4 4 Final Carried 4 | 2 4 2 Class Distribution -------------------- 100% | Mutant Dominant Class ---------------- Mutant | -10/Materials Mutant | -10/Mines Resources | -11 -10 -10 ----------- Run | Scr Mat Min Matter Collected 257 | 193 38 26 Remotely . | . . . Salvage Created 90 | . 62 28 Parts 14 | . 4 10 Haulers Intercepted . | . . . Recyclers Shooed . | . . . Parts Field Recycled . | . . . Retrieved Matter . | . . . Parts Self-Destructed . | . . . Prevented . | . . . Kills | -11 -10 -10 ------- Run | Scr Mat Min Combat Hostiles Destroyed 8 | . 3 5 Guns 1 | . 1 . AOE 7 | . 2 5 Classes Destroyed 4 | . 3 1 Worker 1 | . 1 . Builder 1 | . . 1 Swarmer 7 | . 2 5 Grunt 1 | . 1 . Best Kill Streak 6 | . 4 6 Combat Bots Only 5 | . 3 5 Max Kills in Single Turn 2 | . 2 2 Gunslinging . | . . . Exploded 2 | . 1 2 Melee . | . . . Uniques/NPCs Destroyed . | . . . Combat | -11 -10 -10 -------- Run | Scr Mat Min Damage Taken 551 | . 117 434 Core 261 | . 23 238 Absorbed by Shields . | . . . Core Remaining (%) 100 | 100 . . Volleys Fired 6 | . 3 3 Largest 2 | . 2 1 Hottest 70 | . 70 30 Shots Fired 9 | . 6 3 Gun 4 | . 4 . Cannon . | . . . Launcher 5 | . 2 3 Special . | . . . Kinetic 3 | . 3 . Thermal 1 | . 1 . Explosive 5 | . 2 3 Electromagnetic . | . . . Robot Hit Streak 1 | . 1 1 Robot Miss Streak 2 | . 1 2 Penetration Max . | . . . Secondary Targets . | . . . Shots Hit Robots 4 | . 3 1 Core Hits 13 | . 6 7 Critical Hits . | . . . Critical Kills . | . . . Critical Parts Destroyed . | . . . Melee Attacks . | . . . Impact . | . . . Slashing . | . . . Piercing . | . . . Sneak Attacks . | . . . Combat Hostiles . | . . . Follow-up Attacks . | . . . Damage Inflicted 502 | . 291 211 Guns 29 | . 29 . Cannons . | . . . Explosions 473 | . 262 211 Melee . | . . . Ramming . | . . . Kinetic 29 | . 29 . Thermal . | . . . Explosive 473 | . 262 211 Electromagnetic . | . . . Impact . | . . . Slashing . | . . . Piercing . | . . . Highest Corruption . | . . . Average Corruption . | . . . Corruption Purged . | . . . Overload Shots . | . . . Overflow Damage . | . . . Projectiles . | . . . Explosions . | . . . Melee . | . . . Knockbacks . | . . . Impact . | . . . Kinetic . | . . . Secondary . | . . . Self-Inflicted Damage . | . . . Shots . | . . . Rammed . | . . . Targets Rammed . | . . . Kicked . | . . . Crushed . | . . . Highest Temperature 36 | . 36 . Average Temperature 14 | . 14 . Received Heat Transfer 56 | . 36 20 Siege Activations . | . . . Robots Corrupted . | . . . Combat Hostiles . | . . . Parts Fried . | . . . Impact Corruptions . | . . . Robots Melted . | . . . Combat Hostiles . | . . . Parts Melted . | . . . Heat Transferred . | . . . Parts Sabotaged . | . . . Parts Stolen . | . . . Parts Stripped . | . . . Power Chain Reactions . | . . . Missiles Intercepted . | . . . Alert | -11 -10 -10 ------- Run | Scr Mat Min Peak Influence 163 | . 125 163 Average Influence 65 | . 70 102 Maximum Alert Level . | . . . Low Security (%) 100 | 100 100 100 Level 1 . | . . . Level 2 . | . . . Level 3 . | . . . Level 4 . | . . . Level 5 . | . . . High Security . | . . . Max Security . | . . . Squads Dispatched 1 | . 1 . Investigation . | . . . Extermination . | . . . Reinforcement 1 | . 1 . Assault . | . . . Garrison . | . . . Intercept . | . . . Construction Impeded . | . . . Haulers Reinforced . | . . . Stealth | -11 -10 -10 --------- Run | Scr Mat Min Distress Signals . | . . . Communications Jammed . | . . . Distress Signals . | . . . Times Spotted 35 | . 11 24 Peak Tracking Total 16 | . 7 16 Tactical Retreats 2 | . . 2 Traps | -11 -10 -10 ------- Run | Scr Mat Min Traps Triggered . | . . . Indirectly . | . . . Trap Hack Attempts . | . . . Triggered . | . . . Disarmed . | . . . Reprogrammed . | . . . Reused . | . . . Traps Extracted . | . . . Installed . | . . . Triggered . | . . . Machines | -11 -10 -10 ---------- Run | Scr Mat Min Machines Disabled 2 | . 2 . Max in Single Turn 1 | . 1 . Machines Sabotaged . | . . . Garrisons Compromised . | . . . Overloaded Fab Kills . | . . . Fab Network Shutdowns . | . . . Hacking | -11 -10 -10 --------- Run | Scr Mat Min Machines Accessed . | . . . Terminals . | . . . Fabricators . | . . . Repair Stations . | . . . Recycling Units . | . . . Scanalyzers . | . . . Garrison Access . | . . . Total Hacks . | . . . Successful . | . . . Failed . | . . . Catastrophic . | . . . Database Lockouts . | . . . Manual . | . . . Terminals . | . . . Fabricators . | . . . Repair Stations . | . . . Recycling Units . | . . . Scanalyzers . | . . . Garrison Access . | . . . Terminal Hacks . | . . . Fabricator Hacks . | . . . Repair Station Hacks . | . . . Recycling Unit Hacks . | . . . Scanalyzer . | . . . Garrison Access Hacks . | . . . Unauthorized Hacks . | . . . Terminals . | . . . Fabricators . | . . . Repair Stations . | . . . Recycling Units . | . . . Scanalyzers . | . . . Garrison Access . | . . . Data Cores Recovered . | . . . Used . | . . . Hacking Detections . | . . . Full Trace Events . | . . . Feedback Events . | . . . Feedback Blocked . | . . . Robot Schematics Acquired . | . . . Robots Built . | . . . Matter . | . . . Time . | . . . Total Robot Build Rating . | . . . Part Schematics Acquired . | . . . Parts Built . | . . . Matter . | . . . Time . | . . . Total Part Build Rating . | . . . Parts Repaired . | . . . Time . | . . . Parts Recycled . | . . . Recycled Matter . | . . . Retrieved Matter . | . . . Retrieved Components . | . . . Parts Scanalyzed . | . . . Part Schematics Acquired . | . . . Parts Damaged . | . . . Bothacking | -11 -10 -10 ------------ Run | Scr Mat Min Used RIF Installer . | . . . Robots Hacked . | . . . Non-combat . | . . . Combat . | . . . Robot Hacks Applied . | . . . Relay Couplers Released . | . . . Robots Rewired . | . . . Allies Hacked . | . . . Hacks Repelled . | . . . Allies | -11 -10 -10 -------- Run | Scr Mat Min Total Allies . | . . . Largest Group . | . . . Highest-Rated Group . | . . . Highest-Rated Ally . | . . . Total Orders . | . . . Ally Attacks . | . . . Total Damage . | . . . Kills . | . . . Allies Corrupted . | . . . Allies Melted . | . . . Intel | -11 -10 -10 ------- Run | Scr Mat Min Robot Analysis Total . | . . . Derelict Logs Recovered . | . . . Drone Launches . | . . . Drone Recoveries . | . . . Exploration | -11 -10 -10 ------------- Run | Scr Mat Min Turns Passed 261 | 56 125 80 Spaces Moved 319 | 35 135 149 Core 10 | 7 . 3 Treads . | . . . Legs 72 | 28 44 . Wheels . | . . . Hover . | . . . Flight 237 | . 91 146 Fastest Speed 37 | 50 37 37 Average Speed 61 | 106 72 40 Slowest Speed 120 | 120 120 117 Overloaded Moves . | . . . Propulsion Burnouts . | . . . Robots Hopped 6 | . 1 5 Cave-ins Triggered . | . . . Exploration Rate (%) 27 | 3 36 44 Regions Visited 2 Branch Regions 1 Pre-discovered Areas . | . . . Known Exits Taken . | . . . Unknown Exits Taken 2 | 1 1 . Scrap Searched . | . . . Spaces Dug . | . . . Terrain Destroyed 30 | . 8 22 Melee . | . . . Projectile . | . . . AOE 30 | . 8 22 Actions | -11 -10 -10 --------- Run | Scr Mat Min Total 373 | 54 155 164 Wait 8 | 6 2 . Move 307 | 34 132 141 Hop 4 | . 1 3 Pick Up 19 | 8 6 5 Fast Attach . | . . . Attach 13 | 6 . 7 Detach 4 | . 2 2 Swap 5 | . 4 1 Drop 7 | . 5 2 Fire 6 | . 3 3 Melee . | . . . Ram . | . . . Kick . | . . . Crush . | . . . Escape Stasis . | . . . Rewire . | . . . Trap . | . . . Miscellaneous . | . . . Route ------- -11/Scrapyard -10/Materials -10/Mines History --------- Turn | Location | Event 16 | -11/Scrapyard | Discovered new exit (range 14) 57 | -11/Scrapyard | Entered Materials 173 | -10/Materials | Discovered new exit (range 12) 182 | -10/Materials | Entered Mines 183 | -10/Mines | Found a hidden stash of uninstalled traps 220 | -10/Mines | Assembled infested the area 225 | -10/Mines | Assisted by a Guerilla fighting off Assembled 241 | -10/Mines | Core integrity fell below 50% 247 | -10/Mines | Core integrity fell below 20% 262 | -10/Mines | Destroyed by as-65802 with Assembled Heavy Rifle Last Messages --------------- A derelict emerges from the shadows: "You need to get out of here! I've been tracking a group of Assembled to figure out where they're coming from, and they're closing on this area, come on!" Penetrated by HV Slug. Mining Laser destroyed. HV Slug penetrates Earth. Acquired 9 matter. Acquired 2 matter. Dropped Flight Unit. Acquired Flight Unit. Acquired 15 matter. HV Slug penetrates Earth. Dropped Ion Engine. Acquired Lgt. Assault Rifle. S-10 Pest destroyed. Flight Unit destroyed. Ion Engine destroyed. Flight Unit destroyed. Acquired Flight Unit. Flight Unit destroyed. Map ----- +----------------------------------------------------+ | ???????????????????????????????????????????????## | | ??????????????????????????????????????????????## | | ?????????????????????????????????????????????## | | ????????????????????????????????????????????## | | ???????????????????????????????????????????## | | ?????????????????????????????????????????### | | ???????????????????????????????????????### | | ?????????????????????????????????????### * | | ?????????????????????????????????????#= ### | | ?????????????????????????????????????# ##?? | | ???????????????????????????????# " ### # ####??? | | ??????????????????????????????# =*# #?????? | | ???????????????????????????#?# ##%*###?????? | | ??????????????????????????# ???????#[ ##????? | | ??????????????????????????? ????????##% %= #????? | | ??????????????????????????? ??????### * #????? | | ??????????????????????????? ?????## #????? | | ??????????????????????????? ????## #????? | | ??????????????????????????? ##?## ### ##????? | | ??????????????????????????? #?# ##??##?????? | | ???????????????????????????# #?# ##??????????? | | ??# ???????????????????????# #?## ##???????????? | | ??# ??######???####???????# #??# ##????????????? | | ???# ## ##?## ##??????# #??# #?????????????? | | ?????# ### ########a#### #?????????????? | | ?????# a aa@aaa a #?????????????? | | ?????# a ############?????????????? | | ?????# ##????????????????????????? | | ?????## ##?????????????????????????? | | ??????##### #########??????????????????????????? | | ??????????####??????????????????????????????????? | | ????????????????????????????????????????????????? | | ????????????????????????????????????????????????? | | | | | | | | | | | | | | | | | | | | | | | | | | | | | | | | | | | +----------------------------------------------------+ Best States ------------- Heat Dissipation 25 Energy Generation 10 Energy Capacity 250 Matter Stores 233 Matter Capacity 300 Sight Range 16 Terrain Scan Density 10 Evasion (%) 62 Item Schematics ----------------- None Robot Schematics ------------------ None Fabricated ------------ Nothing Alien Tech Used ----------------- None Achievements -------------- None Challenges ------------ None Game ------ Seed DeepAlloyFalx Manual? 0 Play Time 00:09:56 Cumulative 13.0 hours Start 2020.06.04 @ 00:28:09 End 2020.06.04 @ 00:38:29 Sessions 1 Manual Loads 0 Difficulty Rogue Special Mode None Game No. 25 Rogue 25 Adventurer 0 Explorer 0 Win Type - Total 0 Types 0/0/0/0/0/0/0 Lore% 18 Gallery% 22 Achievement% 17 Wizard Run 0 Options --------- ASCII 0 Keyboard 0 Movement Mouse Keybinds 0 Fullscreen 1 Font 18/SmallcapsGlow Map View 76x50 Tactical HUD 0 Map Filters NONE Filters NONE Steam 1 RUN: 1e10346c-e7e1-47d0-8fc7-5f025b3ffe53